bitfinex-derivatives/quotes_ETHF0:USTF0_20250115
["timestamp","ask_amount","ask_price","bid_price","bid_amount"]
[1736910752740,0.4816,3225.1,3225.0,0.31021]
[1736910752931,0.4816,3225.1,3224.9,0.31022]
[1736910754332,3.6757,3225.6,3224.8,5.65743006]
[1736910754638,3.82730144,3225.5,3225.0,0.31021]
[1736910754932,0.31018,3225.3,3225.0,0.31021]
[1736910755140,0.31018,3225.3,3224.9,0.31022]
[1736910755438,3.77768593,3225.5,3225.3,0.31018]
[1736910755627,3.2078,3225.6,3225.5,0.31016]
[1736910756036,3.2078,3225.6,3225.5,41.11016]
[1736910756934,3.2078,3226.1,3225.6,0.31015]
[1736910757139,0.04960455,3226.0,3225.6,0.31015]
[1736910757338,3.43829416,3226.0,3225.7,0.31014]
[1736910757741,3.43829416,3226.0,3225.6,0.31015]
[1736910758640,3.74841416,3226.0,3225.6,0.31015]
[1736910758940,3.74841416,3226.0,3225.3,0.4979]
[1736910758941,3.43829416,3226.0,3225.3,0.4979]
[1736910759127,0.31014,3225.8,3225.3,0.80808]
[1736910759330,0.31014,3225.8,3225.4,0.31017]
[1736910759637,0.4931,3225.7,3225.4,0.31017]
[1736910759835,3.81269353,3225.7,3225.3,40.8]
[1736910760036,0.78286,3225.6,3225.2,0.31019]
[1736910760241,0.78286,3225.6,3225.0,4.4828]
[1736910760242,0.31017,3225.5,3225.1,0.3102]
[1736910760437,0.4727,3225.6,3225.1,41.1102]
[1736910760438,0.31017,3225.4,3225.1,41.1102]
[1736910760638,0.9434,3225.6,3225.1,41.1102]
[1736910760837,0.31018,3225.3,3225.0,3.2078]
[1736910761141,3.47708965,3225.2,3225.0,3.2078]
[1736910761548,0.31016,3225.5,3225.1,0.3102]
[1736910761841,3.90128433,3225.5,3225.1,0.31019]
[1736910762134,0.31018,3225.4,3225.0,3.99131]
[1736910762635,0.3102,3225.2,3225.0,3.2078]
[1736910762935,0.31019,3225.3,3225.0,3.2078]
[1736910763242,3.19909937,3225.1,3225.0,3.2078]
[1736910763431,3.50930937,3225.1,3224.9,40.8]
[1736910763631,0.4629,3225.0,3224.9,40.8]
[1736910764145,0.4629,3225.0,3224.9,41.11022]
[1736910764439,0.4629,3225.0,3224.9,40.8]
[1736910764637,0.4629,3225.0,3224.9,41.11022]
[1736910764934,0.4629,3225.0,3224.9,40.8]
[1736910765133,0.4629,3225.0,3224.9,41.11022]
[1736910765333,0.4629,3225.0,3224.9,40.8]
[1736910765535,0.9375,3225.0,3224.9,40.8]
[1736910765736,0.9375,3225.0,3224.9,41.11022]
[1736910765937,1.24771,3225.0,3224.9,40.8]
[1736910767042,0.9375,3225.0,3224.9,40.8]
[1736910767737,1.24771,3225.0,3224.9,40.8]
[1736910768041,4.62204797,3225.0,3224.9,40.8]
[1736910768249,6.81108931,3225.0,3224.1,0.4721]
[1736910768441,0.31029,3224.3,3223.9,0.31032]
[1736910768638,0.5013,3224.2,3223.8,3.40473006]
[1736910768941,0.3103,3224.1,3223.8,3.23665006]
[1736910769248,0.31031,3224.0,3223.9,40.8]
[1736910769750,3.56299013,3224.0,3223.9,40.8]
[1736910769944,3.87330013,3224.0,3223.9,40.8]
[1736910770644,3.56299013,3224.0,3223.9,40.8]
[1736910771455,3.87330013,3224.0,3223.9,40.8]
[1736910771838,3.56299013,3224.0,3223.9,40.8]
[1736910772338,3.56299013,3224.0,3223.9,41.11032]
[1736910772739,3.56299013,3224.0,3223.9,40.8]
[1736910774145,3.87330013,3224.0,3223.9,40.8]
[1736910774651,3.92290441,3224.0,3223.9,40.8]
[1736910775145,3.92290441,3224.0,3221.4,12.37867486]
[1736910775146,3.61259441,3224.0,3221.4,12.37867486]
[1736910775448,0.31035,3223.6,3223.2,0.31038]
[1736910775843,3.51426913,3223.5,3223.3,40.8]
[1736910777946,3.82462913,3223.5,3223.3,40.8]
[1736910778152,0.31037,3223.4,3223.3,40.8]
[1736910778745,4.31502913,3223.5,3223.3,40.8]
[1736910779450,0.31037,3223.4,3223.3,40.8]
[1736910780947,4.00466913,3223.5,3223.3,40.8]
[1736910781250,4.00466913,3223.5,3223.3,41.11037]
[1736910781646,0.4904,3223.5,3223.4,0.4535]
[1736910782048,3.96980416,3223.5,3223.3,40.8]
[1736910782352,0.31037,3223.4,3223.3,40.8]
[1736910782850,3.4967077,3223.4,3222.6,3.51824]
[1736910783055,0.3104,3223.1,3222.6,3.2078]
[1736910783239,3.2078,3223.3,3222.6,3.2078]
[1736910783445,3.7575099,3223.0,3222.6,3.51824]
[1736910783645,3.7575099,3223.0,3222.7,40.8]
[1736910783949,3.7019,3223.3,3222.7,40.8]
[1736910784245,0.31042,3222.8,3222.7,40.8]
[1736910784441,0.04960609,3222.8,3222.2,3.6771]
[1736910784646,0.31047,3222.3,3222.2,3.2078]
[1736910784950,0.31047,3222.3,3222.2,44.0078]
[1736910785451,3.75362635,3222.3,3222.2,44.0078]
[1736910786657,3.44315635,3222.3,3222.2,44.0078]
[1736910786951,0.31046,3222.4,3222.2,44.0078]
[1736910787152,3.57231494,3222.4,3222.2,44.0078]
[1736910787347,0.31047,3222.3,3222.2,44.0078]
[1736910787550,3.57232494,3222.3,3222.2,44.0078]
[1736910787752,3.26185494,3222.3,3222.2,44.0078]
[1736910788051,0.498,3222.6,3222.2,44.0078]
[1736910788255,3.673,3222.9,3222.2,44.0078]
[1736910788457,0.04958014,3222.8,3222.3,0.4759]
[1736910788652,0.31046,3222.5,3222.3,0.4759]
[1736910789756,0.31045,3222.6,3222.3,0.4759]
[1736910790048,0.31045,3222.6,3222.3,0.78636]
[1736910790256,0.31045,3222.6,3222.3,1.28556]
[1736910790456,0.31044,3222.7,3222.4,0.31046]
[1736910790651,0.31044,3222.7,3222.3,0.9751]
[1736910790957,3.61931971,3222.6,3222.3,1.28557]
[1736910791359,0.31045,3222.6,3222.3,1.28557]
[1736910791555,3.61930971,3222.7,3222.3,1.28557]
[1736910791751,0.31044,3222.7,3222.3,0.9751]
[1736910791955,3.35629831,3222.6,3222.3,0.9751]
[1736910792253,3.35629831,3222.6,3222.3,1.28557]
[1736910792858,3.66674831,3222.6,3222.3,1.28557]
[1736910793058,3.35629831,3222.6,3222.3,0.9751]
[1736910793259,0.31046,3222.5,3222.3,0.9751]
[1736910793460,0.31046,3222.4,3222.3,0.4759]
[1736910794365,0.31047,3222.4,3222.2,40.8]
[1736910794962,3.35629831,3222.6,3222.2,40.8]
[1736910795158,0.31047,3222.3,3222.2,40.8]
[1736910796667,3.77835216,3222.3,3222.2,40.8]
[1736910796874,0.31054,3221.6,3221.4,3.2078]
[1736910797157,0.31055,3221.5,3221.4,3.2078]
[1736910797368,0.31055,3221.5,3221.4,44.0078]
[1736910798763,4.1067405,3221.5,3221.4,44.0078]
[1736910798956,7.3145405,3221.5,3221.4,40.8]
[1736910799858,7.3145405,3221.5,3220.7,3.2078]
[1736910799859,0.7764,3221.4,3220.7,3.2078]
[1736910800054,0.31062,3220.8,3220.7,3.2078]
[1736910800259,0.31062,3220.8,3220.7,44.0078]
[1736910800553,2.44963006,3221.2,3220.7,40.8]
[1736910800554,0.31061,3220.9,3220.7,40.8]
[1736910801357,3.92154425,3221.1,3220.7,40.8]
[1736910801358,0.31062,3220.8,3220.7,40.8]
[1736910802962,0.31061,3220.9,3220.7,40.8]
[1736910803357,0.31062,3220.8,3220.7,40.8]
[1736910805257,3.76415201,3220.8,3220.7,40.8]
[1736910805667,4.21945201,3220.8,3220.7,40.8]
[1736910805854,4.21945201,3220.8,3220.2,0.4623]
[1736910805855,0.31065,3220.5,3220.2,0.4623]
[1736910806060,3.90883201,3220.8,3220.2,0.4623]
[1736910806260,3.45353201,3220.8,3220.3,43.24963006]
[1736910806569,0.31061,3220.9,3220.5,0.31064]
[1736910806753,3.6698,3221.1,3220.3,43.24963006]
[1736910806955,3.58642184,3221.0,3220.3,43.24963006]
[1736910807153,3.58642184,3221.0,3220.6,0.31063]
[1736910807566,3.58642184,3221.0,3220.7,0.478]
[1736910807966,3.6698,3221.1,3220.7,3.6858]
[1736910808166,3.2078,3221.1,3220.9,0.3106]
[1736910808867,0.3106,3221.0,3220.8,0.4636]
[1736910809070,4.00499,3221.1,3220.8,0.4636]
[1736910809370,0.31061,3221.0,3220.7,3.6858]
[1736910809566,0.31061,3220.9,3220.7,3.6858]
[1736910810264,0.3106,3221.0,3220.7,3.99642]
[1736910810462,3.6944,3221.1,3220.8,0.31061]
[1736910811371,3.6944,3221.1,3220.9,0.31061]
[1736910811565,3.6944,3221.1,3220.8,0.31061]
[1736910811773,0.3106,3221.0,3220.7,3.99643]
[1736910812368,3.6944,3221.1,3220.7,3.6858]
[1736910812675,0.31061,3220.9,3220.7,3.6858]
[1736910812858,3.6944,3221.1,3220.7,3.6858]
[1736910813259,0.31061,3220.9,3220.7,3.6858]
[1736910813867,3.6944,3221.1,3220.7,3.6858]
[1736910814265,3.6944,3221.1,3220.8,0.31062]
[1736910814572,4.00499,3221.1,3220.7,3.99642]
[1736910815371,4.00499,3221.1,3220.7,3.6858]
[1736910815872,4.00499,3221.1,3220.7,3.99642]
[1736910816368,3.6944,3221.1,3220.7,3.99642]
[1736910816569,4.00499,3221.1,3220.7,3.99642]
[1736910816763,4.00499,3221.1,3220.8,0.31062]
[1736910817868,0.31061,3220.9,3220.7,3.6858]
[1736910818265,0.3106,3221.0,3220.7,3.99642]
[1736910818768,0.31062,3220.8,3220.7,3.2078]
[1736910819367,0.31061,3220.9,3220.7,3.2078]
[1736910819769,0.31062,3220.8,3220.7,3.2078]
[1736910820473,4.1794,3221.1,3220.7,3.2078]
[1736910820672,0.31061,3221.0,3220.7,3.51842]
[1736910821070,0.31061,3221.0,3220.7,3.2078]
[1736910821269,3.2078,3222.0,3220.9,2.44963006]
[1736910821573,3.35931821,3221.4,3221.3,0.31056]
[1736910821774,3.35931821,3221.4,3221.3,41.11056]
[1736910821979,0.4564,3221.6,3221.3,40.8]
[1736910822173,0.31056,3221.4,3221.3,40.8]
[1736910822369,3.6642,3221.6,3220.8,0.4636]
[1736910822370,3.50402453,3221.5,3220.8,0.4636]
[1736910822575,0.3106,3221.0,3220.8,0.4636]
[1736910822878,0.3106,3221.0,3220.9,40.8]
[1736910826475,3.80351693,3221.0,3220.9,40.8]
[1736910826781,0.31061,3220.9,3220.7,3.2078]
[1736910826973,0.80921,3220.9,3220.7,3.2078]
[1736910827172,0.80921,3220.9,3220.5,0.4848]
[1736910827173,3.95639923,3220.8,3220.5,0.4848]
[1736910827372,4.26701923,3220.8,3220.6,0.31063]
[1736910827678,3.95639923,3220.8,3220.7,40.8]
[1736910827877,4.26701923,3220.8,3220.7,40.8]
[1736910828975,3.95639923,3220.8,3220.7,41.11063]
[1736910829979,3.49899923,3220.8,3220.7,41.11063]
[1736910830177,5.65743006,3221.6,3220.7,44.0078]
[1736910830178,0.9807,3221.5,3220.7,44.0078]
[1736910830383,0.31059,3221.1,3220.9,0.3106]
[1736910830577,0.31059,3221.1,3221.0,0.3106]
[1736910830780,4.26957578,3221.5,3221.0,0.3106]
[1736910831077,0.31058,3221.2,3221.0,0.3106]
[1736910831476,3.58102292,3221.1,3221.0,0.3106]
[1736910831779,0.31057,3221.4,3221.1,0.31058]
[1736910831977,3.89159292,3221.4,3221.1,0.31058]
[1736910832275,3.34971122,3221.2,3221.1,0.31058]
[1736910832484,0.9807,3221.5,3220.9,2.44963006]
[1736910832682,0.9807,3221.5,3221.4,0.31056]
[1736910833184,4.45006086,3221.5,3221.4,0.31056]
[1736910835085,4.45006086,3221.5,3221.0,1.4778]
[1736910835284,4.45006086,3221.5,3221.3,0.31057]
[1736910835679,4.45006086,3221.5,3221.4,0.31056]
[1736910838386,4.45006086,3221.5,3221.1,3.2078]
[1736910838387,4.45006086,3221.5,3221.3,0.31056]
[1736910839285,4.45006086,3221.5,3221.1,3.2078]
[1736910839482,4.76061086,3221.5,3221.2,0.31057]
[1736910840584,4.45006086,3221.5,3221.3,0.31057]
[1736910840984,4.45006086,3221.5,3221.1,3.2078]
[1736910840985,4.76061086,3221.5,3221.2,0.31057]
[1736910841186,0.31057,3221.4,3221.1,3.51839]
[1736910841386,0.31058,3221.2,3221.1,3.2078]
[1736910842080,0.31058,3221.2,3221.1,2.4545]
[1736910842081,3.82939561,3221.2,3221.1,2.4545]
[1736910842282,0.31062,3220.8,3220.7,3.2078]
[1736910842485,0.31064,3220.6,3220.4,0.4881]
[1736910842682,0.4869,3220.5,3220.4,0.4881]
[1736910843287,0.4869,3220.5,3220.4,40.8]
[1736910843288,0.79755,3220.5,3220.4,40.8]
[1736910843489,4.29003107,3220.5,3220.4,40.8]
[1736910843890,7.18718107,3220.5,3219.9,0.7734]
[1736910844389,7.18718107,3220.5,3220.0,40.8]
[1736910844695,0.31068,3220.1,3220.0,40.8]
[1736910845586,0.31068,3220.2,3220.0,40.8]
[1736910845986,0.31068,3220.1,3220.0,40.8]
[1736910846887,3.6947,3220.5,3220.1,0.31068]
[1736910847096,0.31066,3220.4,3220.0,41.11069]
[1736910847392,3.25640099,3220.3,3220.0,40.8]
[1736910847596,3.56706099,3220.4,3220.0,41.11069]
[1736910847789,0.31066,3220.4,3220.0,41.11069]
[1736910847987,3.85893771,3220.3,3220.0,41.11069]
[1736910848389,0.31067,3220.3,3220.0,40.8]
[1736910848589,3.6947,3220.5,3220.0,40.8]
[1736910848794,0.31068,3220.2,3220.0,40.8]
[1736910848990,3.28251385,3220.4,3220.0,40.8]
[1736910849297,0.31067,3220.3,3220.0,40.8]
[1736910849491,0.31068,3220.2,3220.0,40.8]
[1736910850788,3.28251385,3220.4,3220.0,40.8]
[1736910850995,0.31068,3220.1,3220.0,40.8]
[1736910851886,3.28251385,3220.4,3220.0,40.8]
[1736910852088,0.31068,3220.1,3220.0,40.8]
[1736910855008,3.28251385,3220.4,3220.0,40.8]
[1736910855202,0.31068,3220.2,3220.0,40.8]
[1736910855594,0.31067,3220.3,3220.0,40.8]
[1736910855793,3.59317385,3220.4,3220.1,0.31068]
[1736910856100,0.31067,3220.3,3220.0,41.11069]
[1736910856302,3.28251385,3220.4,3220.0,40.8]
[1736910856802,3.28251385,3220.4,3220.1,0.31068]
[1736910857001,3.59317385,3220.4,3220.1,0.31068]
[1736910857302,3.28251385,3220.4,3220.1,0.31068]
[1736910857501,3.59317385,3220.4,3220.1,0.31068]
[1736910860004,0.31068,3220.2,3220.0,40.8]
[1736910860407,0.31068,3220.2,3220.0,41.11069]
[1736910863008,3.28251385,3220.4,3220.1,0.31068]
[1736910863009,3.59317385,3220.4,3220.1,0.31068]
[1736910863403,3.59317385,3220.4,3220.2,0.4875]
[1736910863907,3.28251385,3220.4,3220.2,0.79817]
[1736910864297,3.28251385,3220.4,3220.2,0.4875]
[1736910864504,0.31063,3220.7,3220.4,0.31065]
[1736910864707,0.31063,3220.7,3220.5,0.4847]
[1736910865005,3.48166785,3220.6,3220.5,0.4847]
[1736910865404,3.84134833,3220.8,3220.5,0.79534]
[1736910865607,3.53072833,3220.6,3220.5,0.4847]
[1736910866110,3.84136833,3220.7,3220.5,0.4847]
[1736910866307,0.31062,3220.8,3220.5,0.79534]
[1736910866498,3.46706539,3220.6,3220.5,0.79534]
[1736910866703,3.46706539,3220.6,3220.5,3.24497006]
[1736910866907,0.3106,3221.1,3220.5,2.93433006]
[1736910867112,0.3106,3221.1,3220.6,0.31064]
[1736910867304,3.91022857,3221.1,3220.8,0.31061]
[1736910867507,0.3106,3221.0,3220.7,0.31062]
[1736910867808,0.3106,3221.0,3220.8,0.31061]
[1736910869810,3.59962857,3221.1,3220.5,2.93433006]
[1736910870019,0.31061,3220.9,3220.6,0.31063]
[1736910871308,0.31062,3220.8,3220.6,0.31064]
[1736910871514,0.31061,3220.9,3220.7,0.31063]
[1736910872912,0.31061,3220.9,3220.5,0.4847]
[1736910873208,0.31061,3220.9,3220.8,0.31062]
[1736910873817,3.59962857,3221.1,3220.8,0.31062]
[1736910874109,0.3106,3221.0,3220.6,3.2078]
[1736910874314,0.3106,3221.0,3220.8,0.31061]
[1736910876914,0.31061,3220.9,3220.7,0.77142]
[1736910878021,0.3106,3221.0,3220.8,0.31062]
[1736910878219,0.31063,3220.7,3220.6,3.2078]
[1736910878609,0.77133,3220.7,3220.6,3.2078]
[1736910879417,6.27246518,3220.7,3220.3,0.31066]
[1736910879624,0.31064,3220.6,3220.3,0.31066]
[1736910879822,6.27246518,3220.7,3220.2,0.4735]
[1736910880122,4.16298512,3220.5,3220.2,0.78417]
[1736910880320,0.80085,3220.5,3220.3,0.31066]
[1736910880522,3.32048303,3220.4,3220.3,0.31066]
[1736910881015,3.32048303,3220.4,3220.2,0.78417]
[1736910881926,3.32048303,3220.4,3219.8,0.4826]
[1736910881927,5.77011309,3220.4,3219.8,0.4826]
[1736910882117,5.65743006,3220.1,3219.6,0.4569]
[1736910882317,5.65743006,3220.1,3219.4,0.4628]
[1736910882318,2.44963006,3219.7,3219.4,0.4628]
[1736910882524,2.44963006,3219.7,3219.3,3.2078]
[1736910882525,0.31074,3219.6,3219.3,3.2078]
[1736910882724,2.44963006,3219.7,3219.3,3.2078]
[1736910883029,0.78514,3219.5,3219.3,3.2078]
[1736910883324,0.4744,3219.5,3219.3,3.51856]
[1736910883517,0.4744,3219.5,3219.4,0.31075]
[1736910884120,3.51849,3220.1,3219.8,0.3107]
[1736910884319,0.31069,3220.1,3219.9,0.7967]
[1736910884621,0.78508,3220.2,3219.9,0.7967]
[1736910885027,0.78508,3220.2,3219.9,1.2672]
[1736910885929,2.95073006,3220.4,3219.9,0.9565]
[1736910886132,3.51845,3220.5,3220.2,0.31067]
[1736910886331,3.52481016,3220.3,3220.2,0.31067]
[1736910886631,3.52481016,3220.3,3219.9,0.9565]
[1736910886632,3.52481016,3220.4,3220.3,0.31066]
[1736910886935,0.4895,3220.7,3220.4,0.31065]
[1736910887129,0.80013,3220.7,3220.4,0.31065]
[1736910887336,0.80013,3220.7,3220.5,40.8]
[1736910887637,0.4895,3220.7,3220.5,40.8]
[1736910888232,0.4895,3220.7,3220.5,41.2799]
[1736910888936,0.4895,3220.7,3220.5,41.59055]
[1736910890332,3.2078,3220.9,3220.6,0.31064]
[1736910890526,3.2078,3220.9,3220.5,41.2799]
[1736910890731,3.35106704,3220.8,3220.7,0.31062]
[1736910890926,3.2078,3220.9,3220.6,0.4735]
[1736910891129,0.4652,3221.1,3220.9,0.31061]
[1736910891534,3.59242939,3221.0,3220.9,0.31061]
[1736910892732,3.59242939,3221.0,3220.7,3.2078]
[1736910892931,3.59242939,3221.0,3220.8,0.31061]
[1736910895741,3.59242939,3221.0,3220.7,3.2078]
[1736910895941,3.59242939,3221.0,3220.9,0.31061]
[1736910897240,0.4652,3221.1,3220.9,0.31061]
[1736910897643,0.4652,3221.1,3220.7,3.2078]
[1736910897938,3.2078,3221.4,3221.3,0.31057]
[1736910898144,3.2078,3221.4,3220.8,3.72363006]
[1736910898344,6.49867772,3221.4,3220.8,1.274]
[1736910898542,0.31058,3221.2,3220.9,0.31061]
[1736910899142,5.65743006,3221.0,3220.5,41.2799]
[1736910899334,0.31064,3220.6,3220.5,0.4799]
[1736910899641,0.31062,3220.8,3220.5,0.4799]
[1736910899941,0.31062,3220.8,3220.6,0.31064]
[1736910899942,3.24415281,3220.7,3220.6,0.31064]
[1736910900736,3.2078,3221.0,3220.9,0.31061]
[1736910901042,2.05026,3222.0,3221.4,0.31056]
[1736910901043,0.4862,3221.5,3221.4,0.31056]
[1736910901447,4.37053203,3221.5,3221.2,3.51837]
[1736910901741,4.37053203,3221.5,3221.3,40.8]
[1736910901940,4.05998203,3221.5,3221.3,41.11056]
[1736910903143,4.05998203,3221.5,3221.3,40.8]
[1736910903343,0.31056,3221.4,3221.3,40.8]
[1736910903541,4.05998203,3221.5,3221.3,40.8]
[1736910903836,3.6882,3221.6,3221.3,40.8]
[1736910904342,4.477,3222.1,3221.8,0.31051]
[1736910904647,3.59851731,3221.9,3221.8,0.31051]
[1736910905046,4.477,3222.1,3221.8,0.31051]
[1736910905444,4.477,3222.1,3221.4,1.4437]
[1736910905445,3.90675372,3222.0,3221.6,0.31053]
[1736910905749,3.90675372,3222.0,3221.4,1.4437]
[1736910906145,3.90675372,3222.0,3221.7,0.31053]
[1736910906341,3.59624372,3222.0,3221.6,0.31054]
[1736910906646,3.59624372,3222.0,3221.4,1.4437]
[1736910906845,3.59624372,3222.0,3221.9,0.31051]
[1736910907053,0.4562,3222.3,3221.7,3.2078]
[1736910907240,0.76667,3222.3,3221.7,5.65743006]
[1736910907439,2.44963006,3222.0,3221.3,3.2078]
[1736910907644,0.0496758,3221.9,3221.3,3.2078]
[1736910907843,4.54206283,3221.9,3221.3,3.2078]
[1736910908049,0.31052,3221.8,3221.3,3.2078]
[1736910908243,0.31052,3221.8,3221.4,0.31055]
[1736910908444,3.99350971,3221.7,3221.3,3.2078]
[1736910908644,3.99350971,3221.7,3221.5,0.31054]
[1736910908947,0.4598,3221.7,3221.5,0.31054]
[1736910909151,3.53370971,3221.6,3221.5,0.31054]
[1736910909350,3.53370971,3221.6,3221.4,0.31055]
[1736910909550,3.53370971,3221.6,3221.5,0.31055]
[1736910910752,3.84424971,3221.6,3221.4,0.31056]
[1736910911141,3.84424971,3221.6,3221.1,0.4856]
[1736910911142,6.74150971,3221.6,3221.1,0.4856]
[1736910911347,0.31059,3221.2,3221.0,40.8]
[1736910911546,0.4578,3221.1,3221.0,40.8]
[1736910911750,0.4578,3221.1,3221.0,41.1106]
[1736910912547,3.2078,3221.6,3221.0,40.8]
[1736910912850,3.31251081,3221.5,3221.2,0.31057]
[1736910913052,3.31251081,3221.5,3221.0,40.8]
[1736910913456,3.6656,3221.6,3221.5,0.31055]
[1736910913951,3.6656,3221.6,3221.4,0.31055]
[1736910914541,3.6656,3221.6,3221.5,0.31055]
[1736910917559,0.4578,3221.6,3221.5,3.51835]
[1736910917852,3.2078,3222.3,3221.5,5.65743006]
[1736910918050,3.2078,3222.3,3222.1,0.31048]
[1736910919448,3.2078,3222.3,3222.0,0.9475]
[1736910919649,3.2078,3222.3,3222.2,0.31048]
[1736910920252,3.2078,3222.3,3222.2,41.11048]
[1736910921253,3.2078,3222.7,3222.6,0.31044]
[1736910921649,6.80965425,3222.7,3222.5,0.31045]
[1736910922349,6.49921425,3222.7,3222.5,0.31045]
[1736910923153,6.49921425,3222.7,3222.2,40.8]
[1736910923353,6.49921425,3222.7,3222.6,0.31044]
[1736910923857,6.49921425,3222.7,3222.5,0.31045]
[1736910925957,6.49921425,3222.7,3222.2,40.8]
[1736910925958,6.80965425,3222.7,3222.3,0.31047]
[1736910926159,6.80965425,3222.7,3222.4,0.31046]
[1736910928659,6.49921425,3222.7,3222.2,40.8]
[1736910928960,6.49921425,3222.7,3222.0,1.4327]
[1736910929359,6.49921425,3222.7,3222.5,0.31045]
[1736910929559,6.49921425,3222.7,3222.6,0.31044]
[1736910932962,3.2078,3222.7,3222.6,0.31044]
[1736910934156,3.2078,3223.2,3222.5,3.2078]
[1736910934355,0.5017,3223.1,3223.0,0.3104]
[1736910934664,3.98309801,3223.1,3223.0,0.3104]
[1736910935260,3.98309801,3223.1,3222.7,2.44963006]
[1736910935757,3.98309801,3223.1,3222.9,0.31041]
[1736910937164,3.98309801,3223.1,3222.6,1.4504]
[1736910937460,0.3104,3223.0,3222.7,0.31043]
[1736910937659,0.3104,3223.0,3222.8,0.31042]
[1736910937858,3.44645318,3222.9,3222.5,3.2078]
[1736910938159,0.31043,3222.7,3222.4,0.31046]
[1736910938355,0.4604,3222.6,3222.4,0.31046]
[1736910938757,0.31046,3222.5,3222.3,0.31047]
[1736910938952,0.4604,3222.6,3222.3,0.31047]
[1736910939357,0.77085,3222.6,3222.3,0.31047]
[1736910940157,0.4604,3222.6,3222.4,0.31046]
[1736910942160,0.4604,3222.6,3222.2,41.2912]
[1736910942357,0.31045,3222.5,3222.3,0.31047]
[1736910942557,0.4604,3222.6,3222.2,41.2912]
[1736910943058,0.77085,3222.6,3222.3,0.31047]
[1736910943268,0.4604,3222.6,3222.4,0.31046]
[1736910944063,0.77085,3222.6,3222.3,0.31046]
[1736910944366,0.77085,3222.6,3222.2,41.2912]
[1736910944558,0.77085,3222.6,3222.4,0.31046]
[1736910944764,0.77085,3222.6,3222.3,0.31047]
[1736910945565,0.77085,3222.6,3222.2,41.2912]
[1736910945866,0.4604,3222.6,3222.4,0.31046]
[1736910946461,0.4604,3222.6,3222.5,0.31045]
[1736910946662,3.51819,3223.2,3222.5,3.2078]
[1736910946861,0.31044,3222.7,3222.5,3.2078]
[1736910947167,1.25895,3222.6,3222.3,0.31047]
[1736910947368,1.71305,3222.6,3222.3,0.31047]
[1736910947570,1.4026,3222.6,3222.4,0.31046]
[1736910947769,0.4636,3222.6,3222.2,41.2912]
[1736910947966,0.31041,3223.0,3222.4,0.31046]
[1736910948268,0.31041,3223.0,3222.3,2.44963006]
[1736910948269,3.42947671,3222.9,3222.3,0.31047]
[1736910948461,3.2078,3222.7,3222.3,0.31047]
[1736910948764,3.73991671,3222.6,3222.3,0.31047]
[1736910948974,0.939,3222.5,3221.6,3.2078]
[1736910949170,0.939,3222.5,3221.6,3.6839]
[1736910949369,0.939,3222.5,3222.0,0.3105]
[1736910949370,0.31048,3222.3,3222.0,0.3105]
[1736910949672,0.31048,3222.3,3222.0,41.1105]
[1736910949862,0.31048,3222.3,3222.1,0.31049]
[1736910950062,3.63772021,3222.4,3222.1,0.31049]
[1736910950258,0.4636,3222.6,3222.1,5.65743006]
[1736910950459,3.2078,3222.7,3222.6,0.31044]
[1736910951071,3.2078,3222.7,3222.6,41.11044]
[1736910952272,3.2078,3222.7,3222.6,40.8]
[1736910952469,3.51823,3222.7,3222.6,40.8]
[1736910953769,6.58325348,3222.7,3222.3,0.4899]
[1736910953971,0.31046,3222.5,3222.3,0.4899]
[1736910954469,0.31049,3222.2,3222.0,1.272]
[1736910954673,0.31045,3222.5,3222.2,0.31048]
[1736910954878,0.31046,3222.5,3222.2,0.31048]
[1736910955174,0.4602,3222.6,3222.3,40.8]
[1736910955375,0.31046,3222.4,3222.3,40.8]
[1736910956569,0.31046,3222.5,3222.3,40.8]
[1736910956770,0.77065,3222.6,3222.3,41.11047]
[1736910957266,0.4602,3222.6,3222.3,40.8]
[1736910957472,0.4602,3222.6,3222.4,0.31046]
[1736910958471,0.4602,3222.6,3222.3,40.8]
[1736910958783,0.31046,3222.4,3222.1,0.9799]
[1736910959074,0.31047,3222.3,3222.1,0.9799]
[1736910959283,0.31049,3222.2,3221.8,0.31051]
[1736910959478,0.3105,3222.1,3221.8,0.31051]
[1736910959678,4.02318526,3222.1,3221.8,0.31051]
[1736910959981,0.3105,3222.0,3221.9,40.8]
[1736910960182,4.02318526,3222.1,3221.9,40.8]
[1736910960381,3.71268526,3222.1,3222.0,0.3105]
[1736910960584,3.71268526,3222.1,3222.0,0.764]
[1736910960782,0.478,3222.2,3222.0,0.764]
[1736910960783,0.497,3222.5,3222.0,0.925]
[1736910960979,1.26396,3222.5,3222.2,0.31048]
[1736910961176,0.9535,3222.5,3222.1,0.31049]
[1736910961377,0.9535,3222.5,3222.3,0.31047]
[1736910961677,0.4565,3222.5,3222.3,0.31047]
[1736910962386,0.4565,3222.5,3222.1,3.2078]
[1736910962684,0.4565,3222.5,3222.4,0.31046]
[1736910962979,3.2078,3222.7,3222.2,2.44963006]
[1736910963180,3.2078,3222.7,3222.6,0.31044]
[1736910963791,3.2078,3222.7,3222.6,41.11044]
[1736910965383,3.51823,3222.7,3222.6,40.8]
[1736910965584,0.31047,3222.4,3222.1,0.31049]
[1736910965779,0.4994,3222.3,3222.0,1.4097]
[1736910965980,0.4994,3222.3,3222.1,44.31829]
[1736910966177,0.4994,3222.3,3222.1,44.0078]
[1736910966384,0.31048,3222.2,3222.1,40.8]
[1736910966580,0.31052,3221.8,3221.7,3.2078]
[1736910967077,0.31052,3221.8,3221.7,44.0078]
[1736910967675,3.42424858,3222.2,3221.7,44.0078]
[1736910967885,0.31052,3221.8,3221.7,44.0078]